bitfinex/quotes_BTCUSD_20241202
["timestamp","ask_amount","ask_price","bid_price","bid_amount"]
[1733111886111,0.023,96631.0,96629.0,0.00081631]
[1733111886321,0.12709739,96630.0,96629.0,0.00081631]
[1733111886531,0.12584521,96630.0,96629.0,0.00901794]
[1733111886774,0.00191373,96638.0,96637.0,0.00081631]
[1733111886956,0.10475894,96638.0,96637.0,0.00081631]
[1733111887869,0.02491373,96638.0,96637.0,0.00081631]
[1733111889057,0.02591373,96638.0,96637.0,0.00881631]
[1733111889256,0.02591373,96638.0,96637.0,0.01440794]
[1733111889872,0.02591373,96638.0,96631.0,0.0471]
[1733111889873,0.12775894,96638.0,96631.0,0.0471]
[1733111890072,0.12584521,96637.0,96630.0,0.00081631]
[1733111890412,0.023,96633.0,96629.0,0.00081631]
[1733111890664,0.023,96631.0,96629.0,0.00081631]
[1733111890869,0.023,96633.0,96632.0,0.00081631]
[1733111891077,0.023,96637.0,96636.0,0.00081631]
[1733111891496,0.12584521,96637.0,96636.0,0.00081631]
[1733111892574,0.023,96637.0,96636.0,0.00981631]
[1733111892783,0.00191373,96638.0,96637.0,0.10081631]
[1733111892983,0.00191373,96638.0,96637.0,0.17849927]
[1733111893212,0.00191373,96638.0,96637.0,0.26119927]
[1733111893415,0.00191373,96638.0,96637.0,0.35936794]
[1733111893928,0.0017354,96680.0,96637.0,0.35936794]
[1733111893929,0.00125218,96670.0,96656.0,0.10081631]
[1733111894178,0.00179497,96657.0,96656.0,0.18161631]
[1733111894386,0.00179497,96657.0,96656.0,0.19977794]
[1733111895175,0.00179497,96657.0,96656.0,0.20577794]
[1733111895970,0.00179497,96657.0,96656.0,0.20377794]
[1733111896168,0.00179497,96657.0,96656.0,0.23348348]
[1733111896591,0.00179497,96657.0,96656.0,0.22948348]
[1733111896830,0.00179497,96657.0,96656.0,0.23348348]
[1733111898095,0.00179497,96657.0,96656.0,0.35221948]
[1733111898679,0.00179497,96657.0,96656.0,0.25221948]
[1733111898911,0.00179497,96657.0,96656.0,0.33921948]
[1733111899119,0.00179497,96657.0,96656.0,0.09021948]
[1733111899120,0.00579497,96657.0,96656.0,0.09021948]
[1733111899360,0.00579497,96657.0,96643.0,0.0454]
[1733111899589,0.02879497,96657.0,96656.0,0.001]
[1733111899796,0.00179497,96657.0,96656.0,0.001]
[1733111899997,0.0017354,96680.0,96673.0,0.1]
[1733111900206,0.0017354,96680.0,96656.0,0.06157851]
[1733111900207,0.0017354,96680.0,96679.0,0.1]
[1733111900413,0.0017354,96680.0,96679.0,0.1208256]
[1733111901069,0.0017354,96680.0,96679.0,0.2003256]
[1733111901493,0.0017354,96680.0,96679.0,0.1885]
[1733111901725,0.0017354,96680.0,96679.0,0.10735]
[1733111901964,0.0017354,96680.0,96679.0,0.0885]
[1733111902188,0.0017354,96680.0,96679.0,0.1885]
[1733111902854,0.0017354,96680.0,96679.0,0.19533058]
[1733111903078,0.0017354,96680.0,96679.0,0.1935]
[1733111903749,0.0017354,96680.0,96679.0,0.1845]
[1733111903961,0.0017354,96680.0,96679.0,0.2089698]
[1733111904189,0.0017354,96680.0,96679.0,0.20180049]
[1733111904435,0.0017354,96680.0,96679.0,0.55507049]
[1733111904624,0.0017354,96680.0,96679.0,0.5532398]
[1733111904825,0.0017354,96680.0,96679.0,0.5622398]
[1733111905255,0.0017354,96680.0,96679.0,0.3553698]
[1733111905471,0.0047354,96680.0,96679.0,0.2089698]
[1733111905722,0.0047354,96680.0,96679.0,0.21080044]
[1733111905965,0.0017354,96680.0,96679.0,0.11080044]
[1733111906191,0.0027354,96680.0,96679.0,0.2149698]
[1733111906646,0.0027354,96680.0,96679.0,0.2059698]
[1733111906870,0.0017354,96680.0,96679.0,0.20180049]
[1733111907103,0.0047354,96680.0,96679.0,0.40867049]
[1733111907334,0.0047354,96680.0,96679.0,0.2999698]
[1733111907564,0.0047354,96680.0,96679.0,0.5158398]
[1733111907784,0.0017344,96684.0,96683.0,0.2]
[1733111908017,0.0017344,96684.0,96683.0,0.20183041]
[1733111908486,0.0017344,96684.0,96683.0,0.2]
[1733111908699,0.0017344,96684.0,96683.0,0.20183027]
[1733111908919,0.0017344,96684.0,96683.0,0.2]
[1733111909148,0.0017344,96684.0,96683.0,0.28081957]
[1733111909865,0.0027344,96684.0,96683.0,0.28781957]
[1733111910084,0.0024603,96684.0,96683.0,0.28781957]
[1733111910311,0.0024603,96684.0,96683.0,0.29681957]
[1733111910818,0.0024603,96684.0,96683.0,0.19681957]
[1733111911055,0.0024603,96684.0,96683.0,0.016]
[1733111911498,0.0024603,96684.0,96683.0,0.116]
[1733111911741,0.0024603,96684.0,96683.0,0.11783065]
[1733111912188,0.0024603,96684.0,96683.0,0.01783065]
[1733111912413,0.0024603,96684.0,96683.0,0.116]
[1733111912654,0.0024603,96684.0,96683.0,0.1375698]
[1733111912883,0.0024603,96684.0,96683.0,0.0375698]
[1733111913340,0.0024603,96684.0,96683.0,0.1375698]
[1733111913799,0.0024603,96684.0,96683.0,0.13940031]
[1733111914027,0.0024603,96684.0,96683.0,0.23940031]
[1733111914234,0.0024603,96684.0,96683.0,0.2375698]
[1733111915943,0.0024603,96684.0,96683.0,0.1375698]
[1733111916408,0.0024603,96684.0,96683.0,0.0375698]
[1733111916628,0.0024603,96684.0,96683.0,0.03940033]
[1733111916843,0.0024603,96684.0,96683.0,0.13940033]
[1733111918986,0.0024603,96684.0,96683.0,0.1384347]
[1733111919224,0.0024603,96684.0,96683.0,0.14026522]
[1733111919431,0.0024603,96684.0,96683.0,0.24026522]
[1733111919679,0.0024603,96684.0,96683.0,0.2384347]
[1733111920336,0.0024603,96684.0,96683.0,0.41977991]
[1733111920553,0.0024603,96684.0,96683.0,0.46517991]
[1733111921066,0.0017344,96695.0,96694.0,0.406838]
[1733111921285,0.0017344,96695.0,96694.0,0.549906]
[1733111922222,0.0017344,96695.0,96694.0,0.553906]
[1733111922430,0.00191315,96695.0,96694.0,0.553906]
[1733111922668,0.00191315,96695.0,96694.0,0.549906]
[1733111922884,0.00191315,96695.0,96694.0,0.57068245]
[1733111923092,0.01091315,96695.0,96694.0,0.57168245]
[1733111923331,0.01091315,96695.0,96694.0,0.67452766]
[1733111923814,0.01091315,96695.0,96694.0,0.67552766]
[1733111924021,0.009,96695.0,96694.0,0.67552766]
[1733111924478,0.009,96695.0,96694.0,0.67452766]
[1733111924715,0.0017334,96708.0,96694.0,0.67352766]
[1733111924934,0.0017334,96708.0,96707.0,0.40681]
[1733111925360,0.0017334,96708.0,96707.0,0.20681]
[1733111925587,0.023,96707.0,96695.0,0.08803697]
[1733111925811,0.12584521,96707.0,96694.0,0.02136886]
[1733111926054,0.00125218,96706.0,96694.0,0.02136886]
[1733111926260,0.023,96704.0,96694.0,0.02136886]
[1733111926467,0.12584521,96704.0,96695.0,0.01213689]
[1733111927707,0.12784521,96704.0,96695.0,0.01213689]
[1733111928164,0.12984521,96704.0,96695.0,0.01213689]
[1733111928829,0.12784521,96704.0,96695.0,0.01213689]
[1733111929024,0.10284521,96703.0,96696.0,0.03421821]
[1733111929233,0.023,96702.0,96696.0,0.03421821]
[1733111929923,0.023,96703.0,96696.0,0.03421821]
[1733111930158,0.002,96704.0,96703.0,0.2]
[1733111930362,0.002,96704.0,96703.0,0.22360486]
[1733111930598,0.0037298,96704.0,96703.0,0.22360486]
[1733111931001,0.0017298,96704.0,96703.0,0.12360486]
[1733111931222,0.0017298,96704.0,96703.0,0.22360486]
[1733111931682,0.0017298,96704.0,96703.0,0.12360486]
[1733111931919,0.12757501,96704.0,96703.0,0.02360486]
[1733111932116,0.13457501,96704.0,96703.0,0.001]
[1733111932777,0.22982,96703.0,96694.0,0.02136886]
[1733111933019,0.023,96701.0,96694.0,0.02136886]
[1733111933225,0.12584521,96701.0,96695.0,0.01213689]
[1733111934309,0.10284521,96701.0,96695.0,0.01213689]
[1733111934554,0.0017298,96704.0,96695.0,0.01213689]
[1733111934555,0.0017298,96704.0,96703.0,0.006]
[1733111934981,0.0017298,96704.0,96697.0,0.00183022]
[1733111935188,0.0017298,96704.0,96698.0,0.00183022]
[1733111935391,0.001,96701.0,96699.0,0.0135336]
[1733111935606,0.001,96701.0,96699.0,0.01536382]
[1733111935817,0.10284521,96700.0,96695.0,0.01213689]
[1733111936037,0.413654,96699.0,96694.0,0.00059241]
[1733111936504,0.229831,96697.0,96694.0,0.00059241]
[1733111936731,0.48268021,96695.0,96694.0,0.00059241]
[1733111936979,0.51422112,96695.0,96694.0,0.00059241]
[1733111937405,0.59232112,96695.0,96694.0,0.00059241]
[1733111937652,0.59232112,96695.0,96694.0,0.00959241]
[1733111937869,0.59232112,96695.0,96694.0,0.00059241]
[1733111938758,0.379859,96684.0,96683.0,0.0008649]
[1733111939003,0.52890421,96684.0,96683.0,0.0008649]
[1733111940570,0.52890421,96684.0,96683.0,0.0028649]
[1733111940791,0.61030421,96684.0,96683.0,0.0028649]
[1733111941003,0.64179283,96684.0,96683.0,0.0028649]
[1733111941219,0.64179283,96684.0,96683.0,0.0008649]
[1733111941670,0.64179283,96684.0,96683.0,0.0018649]
[1733111941671,0.61030421,96684.0,96683.0,0.0018649]
[1733111942587,0.35590421,96684.0,96683.0,0.0018649]
[1733111943496,0.35590421,96684.0,96683.0,0.0008649]
[1733111943967,0.35590421,96684.0,96683.0,0.0018649]
[1733111944180,0.35590421,96684.0,96683.0,0.0008649]
[1733111944393,0.35590421,96684.0,96683.0,0.0018649]
[1733111944671,0.50590421,96684.0,96683.0,0.0018649]
[1733111944923,0.50590421,96684.0,96683.0,0.0008649]
[1733111945147,0.50590421,96684.0,96632.0,0.1]
[1733111945148,0.1991,96683.0,96632.0,0.1]
[1733111945378,0.20694,96647.0,96629.0,0.0774]
[1733111945587,0.15,96673.0,96629.0,0.0774]
[1733111945588,0.10284521,96646.0,96632.0,0.02054416]
[1733111945798,0.10284521,96646.0,96633.0,0.00183144]
[1733111946014,0.10284521,96646.0,96634.0,0.00183144]
[1733111946431,0.10284521,96646.0,96633.0,0.00183144]
[1733111946693,0.10344055,96646.0,96633.0,0.00183144]
[1733111946929,0.10644055,96646.0,96634.0,0.03482142]
[1733111947149,0.00059534,96646.0,96635.0,0.00183139]
[1733111947364,0.00059534,96646.0,96636.0,0.20879336]
[1733111947587,0.00359534,96646.0,96642.0,0.1]
[1733111947857,0.00559534,96646.0,96644.0,0.1]
[1733111948076,0.00859534,96646.0,96645.0,0.20877316]
[1733111948318,0.00659534,96646.0,96645.0,0.20877316]
[1733111948530,0.00659534,96646.0,96645.0,0.30877316]
[1733111948771,0.00959534,96646.0,96645.0,0.34215985]
[1733111949037,0.003,96646.0,96645.0,0.44500506]
[1733111949218,0.00125218,96686.0,96667.0,0.1]
[1733111949433,0.10284521,96685.0,96668.0,0.2862237]
[1733111949646,0.10284521,96685.0,96670.0,0.206889]
[1733111949875,0.10284521,96685.0,96671.0,0.0018307]
[1733111950087,0.10284521,96685.0,96671.0,0.1]
[1733111950514,0.10284521,96685.0,96672.0,0.00183065]
[1733111950731,0.00125218,96696.0,96672.0,0.10183065]
[1733111950732,0.413671,96695.0,96672.0,0.10183065]
[1733111950945,0.206856,96686.0,96673.0,0.04767794]
[1733111951155,0.30970121,96686.0,96673.0,0.04767794]
[1733111951359,0.30970121,96686.0,96672.0,0.1]
[1733111951634,0.10284521,96686.0,96673.0,0.00183064]
[1733111952119,0.15,96701.0,96675.0,0.1]
[1733111952356,0.0767,96710.0,96678.0,0.1]
[1733111952357,0.31092239,96700.0,96678.0,0.1]
[1733111952598,0.005,96695.0,96679.0,0.03270155]
[1733111952817,0.20684,96693.0,96679.0,0.03087105]
[1733111953042,0.206851,96688.0,96677.0,0.1]
[1733111953250,0.206855,96686.0,96673.0,0.1]
[1733111953475,0.10284521,96687.0,96674.0,0.00183062]
[1733111953906,0.10284521,96687.0,96672.0,0.1]
[1733111954142,0.206855,96686.0,96673.0,0.00269542]
[1733111954370,0.206868,96680.0,96674.0,0.02014255]
[1733111954597,0.30970021,96686.0,96674.0,0.02014255]
[1733111954824,0.30970021,96686.0,96675.0,0.00183064]
[1733111955044,0.10284521,96686.0,96675.0,0.00183064]
[1733111955716,0.10284521,96686.0,96676.0,0.00183063]
[1733111955957,0.10284521,96686.0,96677.0,0.01621957]
[1733111957050,0.007,96680.0,96677.0,0.01438893]
[1733111957475,0.10284521,96686.0,96677.0,0.01621957]
[1733111957893,0.206857,96685.0,96677.0,0.01621957]
[1733111958121,0.10384521,96686.0,96677.0,0.01621957]
[1733111958341,0.206857,96685.0,96678.0,0.01582782]
[1733111958781,0.20686,96684.0,96678.0,0.01582782]
[1733111958997,0.10284521,96686.0,96678.0,0.01582782]
[1733111959221,0.206861,96683.0,96678.0,0.01582782]
[1733111959677,0.413723,96683.0,96678.0,0.01582782]
[1733111959948,0.413723,96683.0,96674.0,0.02014255]
[1733111959949,0.413723,96683.0,96679.0,0.01368352]
[1733111960158,0.206861,96683.0,96674.0,0.02197321]
[1733111960392,0.413724,96683.0,96674.0,0.02197321]
[1733111960611,0.206861,96683.0,96674.0,0.02197321]
[1733111960834,0.10284521,96686.0,96675.0,0.00183066]
[1733111961066,0.10284521,96685.0,96676.0,0.03844546]
[1733111961301,0.20687,96679.0,96674.0,0.02014255]
[1733111961516,0.413742,96679.0,96674.0,0.02014255]
[1733111961731,0.20687,96679.0,96674.0,0.02014255]
[1733111962348,0.20687,96679.0,96673.0,0.0008648]
[1733111962349,0.41375,96677.0,96673.0,0.0008648]
[1733111962504,0.206878,96675.0,96673.0,0.0008648]
[1733111962704,0.10284521,96674.0,96673.0,0.0008648]
[1733111963449,0.12584521,96674.0,96673.0,0.0008648]
[1733111963929,0.023,96694.0,96673.0,0.0008648]
[1733111964167,0.206859,96684.0,96674.0,0.01028744]
[1733111964387,0.10284521,96693.0,96680.0,0.24056535]
[1733111964636,0.206842,96692.0,96681.0,0.00183054]
[1733111964847,0.206846,96690.0,96682.0,0.01201359]
[1733111965037,0.20685,96688.0,96682.0,0.01018305]
[1733111965544,0.20685,96688.0,96685.0,0.0207717]
[1733111965993,0.206846,96690.0,96682.0,0.01018305]
[1733111965994,0.206856,96686.0,96682.0,0.01018305]
[1733111966248,0.206878,96675.0,96674.0,3.0]
[1733111966461,0.33272321,96675.0,96674.0,3.0]
[1733111967640,0.33272321,96675.0,96674.0,3.009]
[1733111968366,0.33272321,96675.0,96674.0,3.016]
[1733111968576,0.33372321,96675.0,96674.0,3.016]
[1733111969002,0.33272321,96675.0,96674.0,3.009]
[1733111969216,0.206863,96682.0,96674.0,3.10583146]
[1733111969435,0.206868,96680.0,96674.0,3.10583146]
[1733111969645,0.10284521,96681.0,96674.0,3.11283146]
[1733111970120,0.10284521,96681.0,96675.0,0.01042165]
[1733111970362,0.20685,96689.0,96675.0,0.01042165]
[1733111970574,0.206853,96687.0,96676.0,0.0018306]
[1733111970793,0.206857,96685.0,96675.0,0.01042165]
[1733111971018,0.206859,96684.0,96675.0,0.01042165]
[1733111971232,0.206859,96684.0,96676.0,0.10283146]
[1733111971932,0.10284521,96686.0,96678.0,0.02119932]
[1733111971933,0.206857,96685.0,96678.0,0.02119932]
[1733111972150,0.10284521,96686.0,96678.0,0.02119932]
[1733111972616,0.206857,96685.0,96678.0,0.02119932]
[1733111973297,0.10284521,96686.0,96678.0,0.02919932]
[1733111973480,0.10284521,96686.0,96679.0,0.10283146]
[1733111974906,0.30970121,96686.0,96679.0,0.10283146]
[1733111975383,0.10284521,96686.0,96679.0,0.10683146]
[1733111975615,0.30970021,96686.0,96679.0,0.10683146]
[1733111975858,0.51655621,96686.0,96679.0,0.11083146]
[1733111976088,0.51655621,96686.0,96680.0,0.10283146]
[1733111976322,0.30970021,96686.0,96680.0,0.10283146]
[1733111976790,0.51655621,96686.0,96680.0,0.10283146]
[1733111977192,0.206843,96692.0,96680.0,0.10466209]
[1733111977450,0.10284521,96691.0,96681.0,0.00183053]
[1733111977660,0.10284521,96691.0,96680.0,0.10283146]
[1733111977661,0.206846,96690.0,96682.0,0.04618296]
[1733111978342,0.206847,96690.0,96682.0,0.04618296]
[1733111978555,0.0017296,96694.0,96683.0,0.1]
[1733111978768,0.0017304,96686.0,96684.0,0.00183041]
[1733111978981,0.0017304,96686.0,96685.0,0.00183041]
[1733111979229,0.0017304,96686.0,96685.0,0.06012092]
[1733111979431,0.0017304,96686.0,96685.0,0.05829051]
[1733111980163,0.206857,96685.0,96682.0,0.003]
[1733111980376,0.206857,96685.0,96683.0,0.1]
[1733111980590,0.206857,96685.0,96682.0,0.003]
[1733111980804,0.0017304,96686.0,96680.0,0.10283146]
[1733111981022,0.0017304,96686.0,96681.0,0.10466202]
[1733111981237,0.0037304,96686.0,96681.0,0.10466202]
[1733111981671,0.0017304,96686.0,96681.0,0.10466202]
[1733111981912,0.0017304,96686.0,96682.0,0.006]
[1733111982139,0.0017304,96686.0,96682.0,0.00783051]
[1733111982415,0.206857,96685.0,96683.0,0.03346928]
[1733111982874,0.206857,96685.0,96673.0,0.0008648]
[1733111983084,0.20687,96679.0,96673.0,0.0008648]
[1733111983953,0.206873,96678.0,96673.0,0.0008648]
[1733111984208,0.206873,96678.0,96676.0,0.0205239]
[1733111984418,0.206873,96678.0,96674.0,2.9959959]
[1733111984605,0.206873,96678.0,96675.0,0.10283146]
[1733111985281,0.206873,96678.0,96675.0,0.12364717]
[1733111985722,0.413747,96678.0,96675.0,0.12364717]
[1733111985933,0.416747,96678.0,96675.0,0.10283146]
[1733111986379,0.413747,96678.0,96675.0,0.10283146]
[1733111986609,0.206876,96676.0,96675.0,0.001]
[1733111986872,0.206876,96676.0,96674.0,2.9959959]
[1733111987110,0.206876,96676.0,96675.0,0.001]
[1733111987529,0.33397339,96676.0,96675.0,0.002]
[1733111987833,0.41135083,96676.0,96675.0,0.001]
[1733111988039,0.023,96675.0,96674.0,2.9959959]
[1733111988247,0.15737483,96675.0,96674.0,2.9959959]
[1733111989154,0.30737483,96675.0,96674.0,2.9999959]
[1733111989392,0.30737483,96675.0,96674.0,2.9989959]
[1733111989613,0.38267483,96675.0,96674.0,2.9989959]
[1733111989843,0.38267483,96675.0,96674.0,3.0069959]
[1733111990101,0.39619203,96675.0,96674.0,3.0069959]
[1733111990548,0.39619203,96675.0,96674.0,3.0039959]
[1733111991018,0.39819203,96675.0,96674.0,3.0039959]
[1733111991254,0.39819203,96675.0,96674.0,2.9959959]
[1733111991502,1.08669203,96675.0,96674.0,1.03644671]
[1733111991710,1.08187031,96675.0,96674.0,0.38082105]
[1733111991928,1.08187031,96675.0,96674.0,0.30434165]
[1733111992144,1.08187031,96675.0,96674.0,0.2250125]
[1733111992361,1.07987031,96675.0,96674.0,0.2250125]
[1733111992627,1.08287031,96675.0,96674.0,0.06022025]
[1733111992884,0.35699,96623.0,96598.0,0.0832648]
[1733111993121,0.45983521,96623.0,96622.0,6.017e-05]
[1733111993351,0.4824161,96623.0,96622.0,1.7e-07]
[1733111994052,0.5054161,96623.0,96622.0,1.7e-07]
[1733111994481,0.5114161,96623.0,96622.0,1.7e-07]
[1733111995416,0.53083105,96623.0,96622.0,1.7e-07]
[1733111995631,0.52483105,96623.0,96622.0,1.7e-07]
[1733111996073,0.53083105,96623.0,96622.0,1.7e-07]
[1733111996284,0.52483105,96623.0,96622.0,1.7e-07]
[1733111996500,0.53083105,96623.0,96622.0,0.00100017]
[1733111997421,0.50825016,96623.0,96622.0,0.00100017]
[1733111997629,0.49483521,96623.0,96622.0,0.00100017]
[1733111997971,0.52088683,96623.0,96622.0,0.00100017]
[1733111998204,0.51488683,96623.0,96622.0,0.00100017]
[1733111998405,0.51888683,96623.0,96622.0,0.00100017]
[1733111998617,0.51288683,96623.0,96622.0,1.7e-07]
[1733111999040,0.51688683,96623.0,96622.0,1.7e-07]
[1733112002638,0.51688683,96623.0,96598.0,0.0008648]
[1733112002639,0.207041,96599.0,96598.0,0.0008648]
[1733112002869,0.31113839,96599.0,96598.0,0.00146014]
[1733112003078,0.48593783,96599.0,96598.0,0.00146014]
[1733112004412,0.48593783,96599.0,96598.0,0.00246014]
[1733112004639,0.10284521,96599.0,96598.0,0.00246014]
[1733112004901,0.10284521,96599.0,96598.0,0.13276014]
[1733112005150,0.10284521,96599.0,96598.0,0.14612263]
[1733112005408,0.20701,96614.0,96598.0,0.14612263]
[1733112005621,0.10284521,96613.0,96600.0,0.16026004]
[1733112005889,0.206949,96642.0,96600.0,0.16026004]
[1733112005890,0.206949,96642.0,96601.0,0.00183198]
[1733112006168,0.206983,96627.0,96608.0,0.16026004]
[1733112006366,0.10284521,96626.0,96603.0,0.1232]
[1733112006613,0.20702,96609.0,96603.0,0.1232]
[1733112006854,0.207024,96607.0,96603.0,0.1232]
[1733112007096,0.207024,96607.0,96603.0,0.0458]
[1733112007097,0.207028,96605.0,96603.0,0.0458]
[1733112007306,0.207036,96602.0,96598.0,0.00146014]
[1733112007538,0.10284521,96599.0,96598.0,0.00146014]
[1733112007788,0.12709739,96599.0,96598.0,0.00146014]
[1733112008222,0.10409739,96599.0,96598.0,0.00546014]
[1733112008621,0.10409739,96599.0,96598.0,0.00146014]
[1733112009091,0.10409739,96599.0,96581.0,0.0008648]
[1733112009092,0.10409739,96599.0,96580.0,0.03825464]
[1733112009305,0.207074,96584.0,96581.0,0.01165194]
[1733112009514,0.10284521,96584.0,96581.0,0.01165194]
[1733112009994,0.10284521,96584.0,96580.0,0.03825464]
[1733112010242,0.207064,96589.0,96580.0,0.03825464]
[1733112010243,0.30992021,96583.0,96580.0,0.03825464]
[1733112010457,0.20708,96581.0,96580.0,0.03825464]
[1733112010704,0.31117739,96581.0,96580.0,0.03825464]
[1733112010917,0.30992521,96581.0,96578.0,0.0774]
[1733112011166,0.10409739,96580.0,96567.0,0.0787]
[1733112011583,0.10409739,96580.0,96570.0,0.24088646]
[1733112011796,0.10284521,96580.0,96571.0,0.00183263]
[1733112012044,0.207064,96589.0,96580.0,0.1251]
[1733112012254,0.1,96623.0,96580.0,0.1251]
[1733112012255,0.207023,96608.0,96582.0,0.1248]
[1733112012469,0.1,96636.0,96591.0,0.1248]
[1733112012470,0.10284521,96598.0,96591.0,0.1248]
[1733112012684,0.206962,96636.0,96591.0,0.1248]
[1733112012685,0.207017,96611.0,96592.0,0.00183216]
[1733112012911,0.207017,96611.0,96591.0,0.1248]
[1733112012912,0.00125218,96616.0,96593.0,0.00183208]
[1733112013103,0.00125218,96616.0,96592.0,0.207056]
[1733112013370,0.207033,96603.0,96593.0,0.08798095]
[1733112013612,0.206955,96639.0,96595.0,0.1285]
[1733112013900,0.00125218,96638.0,96610.0,0.24088646]
[1733112014123,0.207009,96614.0,96611.0,0.08173191]
[1733112014363,0.10284521,96635.0,96600.0,0.24088646]
[1733112014579,0.001731,96623.0,96600.0,0.24088646]
[1733112014835,0.10284521,96622.0,96610.0,0.24088646]
[1733112015050,0.00143022,96623.0,96619.0,0.206998]
[1733112015306,0.00143022,96623.0,96620.0,0.00171092]
[1733112015557,0.00143022,96623.0,96619.0,0.206998]
[1733112015558,0.00143022,96623.0,96621.0,0.20870499]
[1733112015794,0.00143022,96623.0,96622.0,0.0515703]
[1733112016001,0.00143022,96623.0,96622.0,0.05328104]
[1733112016253,0.1,96669.0,96622.0,0.05328104]
[1733112016254,0.206919,96656.0,96622.0,0.05328104]
[1733112016495,0.10284521,96654.0,96629.0,0.1]
[1733112016704,0.206925,96653.0,96640.0,0.24088646]
[1733112016921,0.10284521,96652.0,96641.0,0.02579895]
[1733112017136,0.10284521,96652.0,96642.0,0.206949]
[1733112017361,0.206892,96669.0,96649.0,0.1261]
[1733112017642,0.01681736,96655.0,96650.0,0.00170985]
[1733112017867,0.01681736,96655.0,96651.0,0.00170983]
[1733112018095,0.01681736,96655.0,96652.0,0.01449083]
[1733112018313,0.20684,96693.0,96652.0,0.01449083]
[1733112018314,0.2085864,96686.0,96655.0,0.206921]
[1733112018543,0.42560722,96677.0,96667.0,0.24088646]
[1733112018776,0.42560722,96677.0,96668.0,0.00170906]
[1733112019016,0.42542723,96677.0,96667.0,0.24088646]
[1733112019226,0.42560582,96677.0,96668.0,0.02579771]
[1733112019454,0.32276061,96677.0,96669.0,0.126]
[1733112019672,0.32276061,96677.0,96670.0,0.20859789]
[1733112019902,0.32276061,96677.0,96670.0,0.41548689]
[1733112020123,0.32376061,96677.0,96672.0,0.41377]
[1733112020367,0.32376061,96677.0,96674.0,0.20688]
[1733112020648,0.32376061,96677.0,96675.0,0.00170871]
[1733112020867,0.32376061,96677.0,96669.0,0.126]
[1733112020868,0.32358062,96677.0,96669.0,0.126]
[1733112021086,0.206876,96676.0,96672.0,0.00170871]
[1733112021323,0.32258062,96677.0,96673.0,0.01517974]
[1733112021598,0.42542583,96677.0,96673.0,0.01517974]
[1733112021810,0.32458062,96677.0,96673.0,0.01517974]
[1733112022033,0.32458062,96677.0,96674.0,0.00170884]
[1733112022258,0.32258062,96677.0,96673.0,0.01517974]
[1733112022526,0.002,96676.0,96669.0,0.129]
[1733112022733,0.51859921,96676.0,96669.0,0.126]
[1733112023237,0.51659921,96676.0,96669.0,0.126]
[1733112023458,0.51659921,96676.0,96654.0,0.0775]
[1733112023459,0.206895,96668.0,96654.0,0.0775]
[1733112023684,0.20688,96674.0,96655.0,0.00170957]
[1733112023896,0.206885,96672.0,96656.0,0.01370905]
[1733112024122,0.10284521,96672.0,96657.0,0.00170931]
[1733112024345,0.32258062,96677.0,96658.0,0.00170903]
[1733112024611,0.32358062,96677.0,96667.0,0.206893]
[1733112024814,0.32358062,96677.0,96674.0,0.0787]
[1733112025091,0.32258062,96677.0,96675.0,0.01457943]
[1733112025339,0.32258062,96677.0,96675.0,0.22145743]
[1733112026310,0.32558062,96677.0,96675.0,0.22145743]
[1733112026549,0.27052268,96677.0,96676.0,0.1]
[1733112026767,0.26752268,96677.0,96676.0,0.1]
[1733112026983,0.26925308,96677.0,96676.0,0.07536399]
[1733112027409,0.26925308,96677.0,96676.0,0.09577978]
[1733112027874,0.27325308,96677.0,96676.0,0.09577978]
[1733112028118,0.27625308,96677.0,96676.0,0.02041579]
[1733112028398,0.26925308,96677.0,96676.0,0.02041579]
[1733112028614,0.27325308,96677.0,96676.0,0.02041579]
[1733112028856,0.27625308,96677.0,96676.0,0.001]
[1733112029066,0.27625308,96677.0,96653.0,0.06968069]
[1733112029067,0.206911,96660.0,96653.0,0.06968069]
[1733112029286,0.206909,96661.0,96653.0,0.049]
[1733112029513,0.10284521,96659.0,96648.0,0.0805]
[1733112029728,0.206915,96658.0,96649.0,0.00805]
[1733112029951,0.30976221,96657.0,96649.0,0.00805]
[1733112030435,0.2069,96665.0,96650.0,0.00171014]
[1733112030641,0.206891,96670.0,96650.0,0.00171014]
[1733112030855,0.206893,96668.0,96651.0,0.02971981]
[1733112031070,0.2069,96665.0,96651.0,0.02971981]
[1733112031291,0.206913,96659.0,96649.0,0.00805]
[1733112031521,0.10284521,96669.0,96649.0,0.00805]
[1733112031522,0.206928,96652.0,96649.0,0.00805]
[1733112031737,0.206943,96645.0,96641.0,0.0008652]
[1733112031979,0.206947,96643.0,96641.0,0.0008652]
[1733112032220,0.10284521,96642.0,96641.0,0.0008652]
[1733112032427,0.26907449,96677.0,96641.0,0.0008652]
[1733112032641,0.003,96659.0,96641.0,0.0008652]
[1733112032895,0.10284521,96658.0,96649.0,0.001]
[1733112033131,0.003,96659.0,96643.0,0.206947]
[1733112033392,0.003,96659.0,96644.0,0.00170973]
[1733112033623,0.206915,96658.0,96642.0,0.04624782]
[1733112033847,0.206915,96658.0,96641.0,0.0008652]
[1733112033848,0.206939,96647.0,96641.0,0.0008652]
[1733112034068,0.10284521,96642.0,96641.0,0.0008652]
[1733112034322,0.25513507,96642.0,96641.0,2e-07]
[1733112034531,0.35384521,96642.0,96641.0,0.0070002]
[1733112034985,0.25284521,96642.0,96641.0,2e-07]
[1733112035225,0.35284521,96642.0,96641.0,2e-07]
[1733112035453,0.25984521,96642.0,96641.0,2e-07]
[1733112035693,0.25584521,96642.0,96641.0,2e-07]
[1733112035933,0.25784521,96642.0,96641.0,2e-07]
[1733112036149,0.36184521,96642.0,96641.0,2e-07]
[1733112036358,0.35684521,96642.0,96641.0,2e-07]
[1733112036639,0.45684521,96642.0,96641.0,2e-07]
[1733112036879,0.35684521,96642.0,96641.0,2e-07]
[1733112037765,0.45284521,96642.0,96641.0,2e-07]
[1733112038211,0.45484521,96642.0,96641.0,2e-07]
[1733112038461,0.45584521,96642.0,96641.0,2e-07]
[1733112038885,0.45784521,96642.0,96641.0,2e-07]
[1733112039101,0.45284521,96642.0,96641.0,2e-07]
[1733112039307,0.35284521,96642.0,96641.0,2e-07]
[1733112039518,0.25684521,96642.0,96641.0,2e-07]
[1733112040172,0.25884521,96642.0,96641.0,2e-07]
[1733112040391,0.10884521,96642.0,96641.0,2e-07]
[1733112040645,0.11113482,96642.0,96641.0,2e-07]
[1733112041113,0.10884521,96642.0,96641.0,2e-07]
[1733112041327,0.004,96642.0,96641.0,2e-07]
[1733112041559,0.206919,96657.0,96641.0,2e-07]
[1733112041779,0.206915,96658.0,96642.0,0.10299522]